Cogmind - Beta 10.2 @@@ ROGUE MODE // 2021.08.08 @ 08:42:28 Player: thingamajigger Result: Self-destructed Performance ------------- Evolutions (1) 500 Regions Visited (2) 400 Robots Destroyed (33) 165 Value Destroyed (934) 934 Prototype IDs (3) 60 Alien Tech Used (0) 0 Bonus (0) 0 TOTAL SCORE: 2059 Bonus ------- None Cogmind --------- Core Integrity 42/400 Matter 205/300 Energy 135/280 System Corruption 0% Temperature Cool (541) Movement Treading (200) Ox2 Location -9/Materials Parts ------- > --- POWER (1) -------- Heavy Ion Engine > --- PROPULSION (2) --- Light Treads Light Treads > --- UTILITY (4) ------ Large Storage Unit Large Storage Unit Hardened Light Armor Plating > --- WEAPON (2) ------- EMP Blaster EMP Blaster > --- INVENTORY (16) --- Heavy Ion Engine Improved Treads Light Armor Plating Pulse Rifle Pulse Rifle Pulse Rifle Heavy Assault Rifle Shotgun Shotgun EMP Blaster EMP Blaster Peak State ------------ > --- POWER ------------ Heavy Ion Engine > --- PROPULSION ------- Light Treads Light Treads > --- UTILITY ---------- Cryofiber Web Large Storage Unit Large Storage Unit Hardened Light Armor Plating > --- WEAPON ----------- Pulse Rifle Pulse Rifle > --- INVENTORY -------- Improved Treads EM Pulse Gun Small Laser Pulse Rifle Pulse Rifle Heavy Assault Rifle Shotgun Shotgun EMP Blaster EMP Blaster EMP Blaster EMP Blaster [Rating: 20] Favorites ----------- Power Ion Engine Engine Ion Engine Propulsion Light Treads Treads Light Treads Utility Large Storage Unit Device Cryofiber Web Storage Large Storage Unit Protection Hardened Light Armor Plating Weapon Light EM Pulse Cannon Energy Gun Pulse Rifle Energy Cannon Light EM Pulse Cannon Launcher EMP Blaster Build | -11 -10 -9 ------- Run | Scr Mat Mat Slots Evolved 2 | . . 2 Power . | . . . Propulsion . | . . . Utility 2 | . . 2 Weapon . | . . . Parts Attached 21 | 6 5 10 Power 2 | 1 . 1 Engine 2 | 1 . 1 Core . | . . . Reactor . | . . . Propulsion 4 | 2 . 2 Treads 4 | 2 . 2 Leg . | . . . Wheel . | . . . Hover . | . . . Flight . | . . . Utility 5 | 1 2 2 Device 1 | . . 1 Storage 3 | 1 2 . Processor . | . . . Hackware . | . . . Protection 1 | . . 1 Artifact . | . . . Weapon 10 | 2 3 5 Energy Gun 6 | 2 1 3 Energy Cannon 2 | . 2 . Ballistic Gun . | . . . Ballistic Cannon . | . . . Launcher 2 | . . 2 Special Weapon . | . . . Impact Weapon . | . . . Slashing Weapon . | . . . Piercing Weapon . | . . . Special Melee Weapon . | . . . Unidentified Prototypes . | . . . Parts Lost 4 | . . 4 Power . | . . . Propulsion 2 | . . 2 Utility 1 | . . 1 Weapon 1 | . . 1 Highest Loss Streak 3 | . . 3 Average Slot Usage (%) 91 | . 95 88 Engine 12 | . 14 11 Treads 24 | . 28 22 Device 2 | . . 5 Storage 22 | . 23 22 Protection 2 | . . 5 Energy Gun 7 | . 2 10 Energy Cannon 17 | . 25 11 Naked Turns . | . . . Heaviest Build 52 | 13 45 52 Greatest Support 40 | 40 40 40 Greatest Overweight (x) 1 | 1 1 1 Average Overweight (x) . | . . 1 Largest Inventory Capacity 16 | 6 16 16 Average Capacity 14 | 5 12 16 Most Carried 15 | 1 7 15 Average Carried 8 | . 5 11 Final Capacity 16 | 6 16 16 Final Carried 11 | 1 6 11 Class Distribution -------------------- 100% | Mutant Dominant Class ---------------- Mutant | -10/Materials Mutant | -9/Materials Resources | -11 -10 -9 ----------- Run | Scr Mat Mat Matter Collected 370 | 124 186 60 Remotely . | . . . Salvage Created 1087 | . 304 783 Parts 68 | . 14 54 Haulers Intercepted 1 | . . 1 Recyclers Shooed . | . . . Parts Field Recycled . | . . . Retrieved Matter . | . . . Parts Self-Destructed . | . . . Prevented . | . . . Kills | -11 -10 -9 ------- Run | Scr Mat Mat Combat Hostiles Destroyed 24 | . 6 18 Guns 14 | . . 14 Cannons 6 | . 4 2 AOE 3 | . 1 2 Classes Destroyed 7 | . 2 5 Worker 2 | . . 2 Hauler 1 | . . 1 Recycler 1 | . . 1 Watcher 5 | . 1 4 Swarmer 5 | . . 5 Grunt 16 | . 6 10 Sentry 3 | . . 3 Best Kill Streak 4 | . 2 4 Combat Bots Only 3 | . 2 3 Max Kills in Single Turn 2 | . 1 2 Gunslinging . | . . . Exploded 1 | . 1 1 Melee . | . . . Uniques/NPCs Destroyed . | . . . Combat | -11 -10 -9 -------- Run | Scr Mat Mat Damage Taken 1254 | . 222 1032 Core 430 | . 72 358 Absorbed by Shields . | . . . Core Remaining (%) 85 | 100 71 . Volleys Fired 63 | . 17 46 Largest 2 | . 2 2 Hottest 126 | . 112 126 Shots Fired 122 | . 33 89 Gun 66 | . . 66 Cannon 53 | . 33 20 Launcher 3 | . . 3 Special . | . . . Kinetic . | . . . Thermal 66 | . . 66 Explosive . | . . . Electromagnetic 56 | . 33 23 Robot Hit Streak 27 | . 8 27 Robot Miss Streak 2 | . 2 1 Penetration Max . | . . . Secondary Targets 3 | . . 3 Max Gunslinging Chain 1 | . . 1 Shots Hit Robots 92 | . 23 69 Core Hits 40 | . 7 33 Critical Hits . | . . . Critical Kills . | . . . Critical Parts Destroyed . | . . . Melee Attacks . | . . . Impact . | . . . Slashing . | . . . Piercing . | . . . Sneak Attacks . | . . . Combat Hostiles . | . . . Follow-up Attacks . | . . . Damage Inflicted 1954 | . 550 1404 Guns 943 | . . 943 Cannons 865 | . 550 315 Explosions 146 | . . 146 Melee . | . . . Ramming . | . . . Kinetic . | . . . Thermal 980 | . . 980 Explosive . | . . . Electromagnetic 974 | . 550 424 Impact . | . . . Slashing . | . . . Piercing . | . . . Highest Corruption . | . . . Average Corruption . | . . . Corruption Purged . | . . . Overload Shots . | . . . Overflow Damage 25 | . 9 16 Projectiles 25 | . 9 16 Explosions . | . . . Melee . | . . . Knockbacks . | . . . Impact . | . . . Kinetic . | . . . Secondary . | . . . Self-Inflicted Damage 106 | . . 106 Shots 4 | . . 4 Rammed . | . . . Targets Rammed . | . . . Kicked . | . . . Crushed . | . . . Highest Temperature 682 | . 275 682 Average Temperature 155 | . 103 181 Received Heat Transfer 306 | . 126 180 Effects 16 | . . 16 Shutdowns 2 | . . 2 Interference 3 | . . 3 Matter Decay 1 | . . 1 Short Circuit 2 | . . 2 Damage (minor) 2 | . . 2 Damage (major) 4 | . . 4 Damage (core) 2 | . . 2 Siege Activations . | . . . Robots Corrupted 1 | . 1 . Combat Hostiles 1 | . 1 . Parts Fried 10 | . 6 4 Impact Corruptions . | . . . Robots Melted . | . . . Combat Hostiles . | . . . Parts Melted 4 | . . 4 Heat Transferred 2098 | . . 2098 Parts Sabotaged . | . . . Parts Stolen . | . . . Parts Stripped . | . . . Power Chain Reactions 2 | . . 2 Missiles Intercepted . | . . . Alert | -11 -10 -9 ------- Run | Scr Mat Mat Peak Influence 380 | . 205 380 Initial 8 | . . 8 Average 94 | . 62 127 Maximum Alert Level 1 | . 1 1 Low Security (%) 81 | 100 99 64 Level 1 18 | . . 35 Level 2 . | . . . Level 3 . | . . . Level 4 . | . . . Level 5 . | . . . High Security . | . . . Max Security . | . . . Squads Dispatched . | . . . Investigation . | . . . Extermination . | . . . Reinforcement . | . . . Assault . | . . . Garrison . | . . . Intercept . | . . . Construction Impeded . | . . . Haulers Reinforced . | . . . Stealth | -11 -10 -9 --------- Run | Scr Mat Mat Distress Signals 2 | . 1 1 Communications Jammed . | . . . Distress Signals . | . . . Times Spotted 39 | . 14 25 Peak Tracking Total 4 | . 4 4 Tactical Retreats 4 | . 3 1 Traps | -11 -10 -9 ------- Run | Scr Mat Mat Traps Triggered 1 | . . 1 Indirectly . | . . . Trap Hack Attempts . | . . . Triggered . | . . . Disarmed . | . . . Reprogrammed . | . . . Reused . | . . . Traps Extracted . | . . . Installed . | . . . Triggered 2 | . 2 . Machines | -11 -10 -9 ---------- Run | Scr Mat Mat Machines Disabled 5 | . 1 4 Max in Single Turn 3 | . 1 3 Machines Sabotaged . | . . . Garrisons Compromised . | . . . Overloaded Fab Kills . | . . . Fab Network Shutdowns . | . . . Hacking | -11 -10 -9 --------- Run | Scr Mat Mat Machines Accessed 8 | . 2 6 Terminals 8 | . 2 6 Fabricators . | . . . Repair Stations . | . . . Recycling Units . | . . . Scanalyzers . | . . . Garrison Access . | . . . Total Hacks 19 | . 6 13 Successful 11 | . 4 7 Failed 7 | . 2 5 Catastrophic 1 | . . 1 Database Lockouts 1 | . . 1 Manual 16 | . 4 12 Terminals 19 | . 6 13 Fabricators . | . . . Repair Stations . | . . . Recycling Units . | . . . Scanalyzers . | . . . Garrison Access . | . . . Terminal Hacks 8 | . 3 5 Record 1 | . . 1 Robot Analysis 3 | . 1 2 Prototype ID Bank 2 | . 2 . Branch Access Points 1 | . . 1 Terminal Index 1 | . . 1 Fabricator Hacks . | . . . Repair Station Hacks . | . . . Recycling Unit Hacks . | . . . Scanalyzer . | . . . Garrison Access Hacks . | . . . Unauthorized Hacks 3 | . 1 2 Terminals 3 | . 1 2 Botnet 1 | . . 1 Operators 2 | . 1 1 Fabricators . | . . . Repair Stations . | . . . Recycling Units . | . . . Scanalyzers . | . . . Garrison Access . | . . . Data Cores Recovered . | . . . Used . | . . . Hacking Detections 6 | . 2 4 Full Trace Events . | . . . Feedback Events . | . . . Feedback Blocked . | . . . Robot Schematics Acquired . | . . . Robots Built . | . . . Matter . | . . . Time . | . . . Total Robot Build Rating . | . . . Part Schematics Acquired . | . . . Parts Built . | . . . Matter . | . . . Time . | . . . Total Part Build Rating . | . . . Parts Repaired . | . . . Time . | . . . Parts Recycled . | . . . Recycled Matter . | . . . Retrieved Matter . | . . . Retrieved Components . | . . . Parts Scanalyzed . | . . . Part Schematics Acquired . | . . . Parts Damaged . | . . . Bothacking | -11 -10 -9 ------------ Run | Scr Mat Mat Used RIF Installer . | . . . Robots Hacked . | . . . Non-combat . | . . . Combat . | . . . Robot Hacks Applied . | . . . Relay Couplers Released . | . . . Robots Rewired . | . . . Allies Hacked . | . . . Hacks Repelled . | . . . Allies | -11 -10 -9 -------- Run | Scr Mat Mat Total Allies . | . . . Largest Group . | . . . Highest-Rated Group . | . . . Highest-Rated Ally . | . . . Total Orders . | . . . Ally Attacks . | . . . Total Damage . | . . . Kills . | . . . Allies Corrupted . | . . . Allies Melted . | . . . Intel | -11 -10 -9 ------- Run | Scr Mat Mat Robot Analysis Total 3 | . 1 2 Derelict Logs Recovered . | . . . Drone Launches . | . . . Drone Recoveries . | . . . Exploration | -11 -10 -9 ------------- Run | Scr Mat Mat Turns Passed 1887 | 79 815 993 Spaces Moved 886 | 48 412 426 Core 7 | 7 . . Treads 879 | 41 412 426 Legs . | . . . Wheels . | . . . Hover . | . . . Flight . | . . . Fastest Speed 50 | 50 160 180 Average Speed 175 | 147 174 180 Slowest Speed 180 | 160 180 180 Overloaded Moves . | . . . Propulsion Burnouts . | . . . Robots Hopped . | . . . Cave-ins Triggered . | . . . Exploration Rate (%) 43 | 3 63 63 Regions Visited 2 Branch Regions . Pre-discovered Areas . | . . . Known Exits Taken . | . . . Unknown Exits Taken 2 | 1 1 . Scrap Searched . | . . . Spaces Dug . | . . . Terrain Destroyed 52 | . . 52 Melee . | . . . Projectile . | . . . AOE 52 | . . 52 Terrain Rammed . | . . . Walls Destroyed . | . . . Machines Disabled . | . . . Actions | -11 -10 -9 --------- Run | Scr Mat Mat Total 1094 | 54 477 563 Wait 97 | . 34 63 Move 884 | 47 411 426 Hop . | . . . Pick Up 21 | 1 7 13 Fast Attach 9 | 6 1 2 Attach 8 | . 2 6 Detach . | . . . Swap 4 | . 2 2 Drop 8 | . 3 5 Fire 63 | . 17 46 Melee . | . . . Ram . | . . . Kick . | . . . Crush . | . . . Escape Stasis . | . . . Rewire . | . . . Trap . | . . . Miscellaneous . | . . . Route ------- -11/Scrapyard -10/Materials (discovered 3 exits: *Mat x2 / [*Min]) -9/Materials (discovered 3 exits: [*Mat] / *Min x2) History --------- Turn | Location | Event 6 | -11/Scrapyard | Discovered new exit (range 16) 80 | -11/Scrapyard | Entered Materials 131 | -10/Materials | Discovered new exit (range 9) 314 | -10/Materials | Discovered new exit (range 9) 316 | -10/Materials | Build established: Mutant 555 | -10/Materials | Discovered new exit (range 6) 895 | -10/Materials | Entered another Materials area 895 | -9/Materials | Evolved 2 slots: Utility x2 1052 | -9/Materials | Discovered new exit (range 16) 1450 | -9/Materials | Central database locked down 1465 | -9/Materials | Identified exit to Mines 1717 | -9/Materials | Discovered new exit (range 6) 1875 | -9/Materials | Core integrity fell below 50% 1885 | -9/Materials | Core integrity fell below 20% 1888 | -9/Materials | Self-destructed Last Messages --------------- 01880_ EMP Blaster temporarily disabled. 01880_ Y-45 Defender heat short circuits Beam Rifle. 01881_ Overheating: Lrg. Storage Unit damaged (-210). 01882_ Y-45 Defender heat damages core (-5). 01882_ R-06 Scavenger collects Flight Unit. 01883_ Overheating: Lrg. Storage Unit damaged (-142). 01883_ Overheating: Hrd. Light Armor Plating damaged (-35). 01883_ Overheating: Cryofiber Web damaged (-15). 01883_ Overheating: Lgt. Treads damaged (-26). 01884_ Chain reaction triggered in Imp. Ion Engine. 01884_ K-01 Serf collects debris. 01885_ Power failure, Hvy. Ion Engine shutdown. 01885_ Overheating: Core damaged (-68). 01885_ Y-45 Defender heat damages core (-6). 01885_ Cryofiber Web destroyed. 01886_ Lgt. Treads permanently disabled. 01886_ Overheating: Short circuit. 01886_ S-10 Pest destroyed. 01886_ Terminal disabled. 01887_ K-01 Serf collects debris. Map ----- +----------------------------------------------------+ | ????#""" #???????????????????????????? ????????? | | ###?#"" #???????????????????????????? ????????? | | #?#"" #???????????????????????????? ????????? | | #?# " #????????????????????????????#????????? | | #?# #?????????????????????????????????????? | | " #?# #?????????????????????????????????????? | | " #?# #?????????????????????????????????????? | | #?########?????????????????????????????????????? | | ###???###????????????????????????????????????????? | | ###### ######???????????????????????????????????? | | + #????????? ?????????????????????? | | ##### #????????? > #????????????????????? | | ##???# """" #????????? ?????????????????????? | | #????# """" #????????? ?????????????????????? | | ###??# """" #?????????# #?????????????????????? | | #### #?????????# #?????????????????????? | | + ]! #?????????# #?????????????????????? | | #### ]! #?????????# #?????????????????????? | | #??# #?????????# #?????????????????????? | | #??# #?????????# #?????????????????????? | | *[#??#/ #???###??## ##????????????????????? | | %%##########k##### ## #????????????????????? | | a Y #????????????????????? | | k [% %= #????????????????????? | | % %= #????????????????????? | | #################### ## @ #????????????????????? | | ???????????????????# ########????????????????????? | | ??????????????????? ???????????????????????????? | | ?????????????????? ??????????????????????????? | | ?????????????????+ ?????????????????????????? | | ?????????????????# ##????????????????????????? | | ?????????????????# #?????????????????????????? | | ?????????????????###+###?????????????????????????? | | ?????????????????????????????????????????????????? | | ?????????????????????????????????????????????????? | | ?????????????????????????????????????????????????? | | ?????????????????????????????????????????????????? | | ?????????????????????????????????????????????????? | | ?????????????????????????????????????????????????? | | ?????????????????????????????????????????????????? | | ?????????????????????????????????????????????????? | | ?????????????????????????????????????????????????? | | | | | | | | | | | | | | | | | +----------------------------------------------------+ Best States ------------- Heat Dissipation 28 Energy Generation 14 Energy Capacity 280 Matter Stores 300 Matter Capacity 300 Sight Range 16 Terrain Scan Density 10 Base Temperature (-) 100 Armor Coverage 150 Evasion (%) 40 Recoil Reduction 2 Item Schematics ----------------- None Robot Schematics ------------------ None Fabricated ------------ Nothing Alien Tech Used ----------------- None Achievements -------------- None Challenges ------------ None Game ------ Seed MetafieldImprinterMatter Manual? 0 Play Time 00:09:46 Cumulative 91.3 hours Start 2021.08.08 @ 08:33:17 End 2021.08.08 @ 08:42:28 Sessions 1 Manual Loads 0 Difficulty Rogue Special Mode None Game No. 157 Rogue 145 Adventurer 4 Explorer 8 Win Type - Total 6 Types 5/0/0/1/0/0/0/0/0 Lore% 60 Gallery% 78 Achievement% 56 Wizard Run 0 Options --------- ASCII 0 Keyboard 1 Movement Numpad Keybinds 0 Fullscreen 1 Font 18/SmallcapsGlow Map View 76x50 Tactical HUD 1 Map Filters NONE Filters NONE Steam 1 RUN: ef5028f9-7e97-4c57-b23b-a2192a2682d2